bitfinex/quotes_SOLUSD_20251018
["timestamp","ask_amount","ask_price","bid_price","bid_amount"]
[1760800906078,2.17264119,185.79,185.76,22.88]
[1760800906365,2.86264119,185.79,185.76,22.88]
[1760800906787,2.17264119,185.8,185.76,23.49]
[1760800907858,2.17264119,185.81,185.76,23.49]
[1760800908057,2.86264119,185.81,185.77,18.84050169]
[1760800908260,2.17264119,185.82,185.77,19.45050169]
[1760800908465,2.17264119,185.82,185.78,0.61]
[1760800908671,2.86264119,185.82,185.77,18.84050169]
[1760800909171,2.86264119,185.82,185.77,19.45050169]
[1760800910473,2.17264119,185.83,185.79,18.83847354]
[1760800910660,2.17264119,185.83,185.79,19.44847354]
[1760800911663,0.69,185.82,185.79,18.83847354]
[1760800911869,2.17264119,185.83,185.79,21.33847354]
[1760800912166,2.86264119,185.83,185.79,21.33847354]
[1760800913169,2.17264119,185.83,185.79,21.33847354]
[1760800913475,2.86264119,185.82,185.79,21.33847354]
[1760800913966,2.17264119,185.8,185.79,7.88242101]
[1760800914171,2.86264119,185.8,185.79,7.88242101]
[1760800915955,2.17264119,185.8,185.79,7.88242101]
[1760800916368,2.86264119,185.8,185.79,7.88242101]
[1760800916657,2.86264119,185.8,185.79,2.5]
[1760800920376,2.17264119,185.8,185.79,7.88242101]
[1760800920780,2.86264119,185.8,185.73,2.5]
[1760800921078,2.17264119,185.74,185.73,5.38408982]
[1760800921375,2.17264119,185.75,185.73,5.38408982]
[1760800921874,2.17264119,185.76,185.73,5.38408982]
[1760800922679,2.17264119,185.75,185.73,5.38408982]
[1760800923173,2.86264119,185.74,185.73,5.38408982]
[1760800923563,2.86264119,185.74,185.72,5.38440414]
[1760800923873,33.75647521,185.79,185.7,5.38502961]
[1760800923874,2.86264119,185.73,185.7,5.38502961]
[1760800924068,2.17264119,185.71,185.7,5.38502961]
[1760800924265,2.86264119,185.71,185.67,13.46469147]
[1760800924464,2.86264119,185.7,185.65,18.85267976]
[1760800924671,2.17264119,185.69,185.66,0.61]
[1760800924872,2.17264119,185.71,185.67,0.61]
[1760800925079,2.17264119,185.72,185.68,0.61]
[1760800925260,2.17264119,185.69,185.65,18.85267976]
[1760800925580,31.57056476,185.76,185.65,5.38647993]
[1760800925581,2.17264119,185.67,185.65,5.38647993]
[1760800925779,2.17264119,185.68,185.65,5.38647993]
[1760800926080,2.87264119,185.68,185.65,5.38647993]
[1760800926376,2.17264119,185.67,185.65,5.38647993]
[1760800926560,2.17264119,185.67,185.64,5.38677009]
[1760800926758,10.87647521,185.74,185.64,18.85369532]
[1760800926960,0.7,185.74,185.67,22.88]
[1760800927160,2.17264119,185.72,185.67,23.49]
[1760800927983,2.17264119,185.72,185.68,0.61]
[1760800928161,2.17264119,185.72,185.69,5.38531961]
[1760800928363,2.17264119,185.72,185.69,18.84861865]
[1760800929777,2.17264119,185.72,185.69,13.46329904]
[1760800930667,2.17264119,185.7,185.68,5.38560965]
[1760800931887,2.17264119,185.7,185.67,18.85061325]
[1760800932584,2.17264119,185.7,185.67,21.35061325]
[1760800933291,2.17264119,185.7,185.67,21.96061325]
[1760800933462,2.17264119,185.71,185.67,21.96061325]
[1760800935059,2.17264119,185.71,185.67,21.35061325]
[1760800935265,2.83264119,185.72,185.67,21.96061325]
[1760800936165,2.17264119,185.71,185.67,21.35061325]
[1760800936674,2.17264119,185.71,185.67,21.96061325]
[1760800937869,2.17264119,185.75,185.68,0.61]
[1760800938164,2.83264119,185.76,185.68,0.61]
[1760800938369,2.17264119,185.75,185.68,3.11]
[1760800938564,2.17264119,185.74,185.69,0.61]
[1760800938760,2.17264119,185.74,185.7,0.61]
[1760800939685,0.66,185.75,185.7,0.61]
[1760800939871,2.17264119,185.74,185.7,0.61]
[1760800940786,2.17264119,185.74,185.71,5.38473964]
[1760800941086,2.17264119,185.74,185.71,18.84658875]
[1760800941588,2.83264119,185.73,185.71,5.38473964]
[1760800941801,2.17264119,185.72,185.7,7.88498515]
[1760800941968,2.83264119,185.72,185.7,7.88498515]
[1760800942990,2.17264119,185.74,185.7,21.95755919]
[1760800943189,2.17264119,185.77,185.71,0.61]
[1760800943392,2.83264119,185.78,185.71,0.61]
[1760800943585,2.17264119,185.78,185.71,3.11]
[1760800943788,2.17264119,185.79,185.73,22.88]
[1760800943987,2.17264119,185.79,185.73,25.99]
[1760800944290,2.17264119,185.8,185.74,0.61]
[1760800944475,2.17264119,185.81,185.74,0.61]
[1760800944669,2.83264119,185.81,185.74,22.88]
[1760800944887,2.17264119,185.78,185.74,22.88]
[1760800945172,0.66,185.78,185.75,18.84253028]
[1760800945671,2.17264119,185.79,185.75,18.84253028]
[1760800945879,2.17264119,185.8,185.75,18.84253028]
[1760800946072,0.66,185.79,185.75,18.84253028]
[1760800946999,2.17264119,185.83,185.77,18.84050169]
[1760800947178,2.83264119,185.83,185.77,18.84050169]
[1760800947585,2.17264119,185.82,185.77,18.84050169]
[1760800947976,2.83264119,185.82,185.77,18.84050169]
[1760800948683,2.83264119,185.82,185.77,19.45050169]
[1760800950109,2.17264119,185.81,185.77,19.45050169]
[1760800950291,2.17264119,185.8,185.77,18.84050169]
[1760800950598,2.83264119,185.8,185.77,18.84050169]
[1760800951012,2.83264119,185.8,185.75,18.84253028]
[1760800951195,2.17264119,185.79,185.75,18.84253028]
[1760800951510,2.83264119,185.79,185.75,18.84253028]
[1760800952295,2.83264119,185.78,185.75,5.38358008]
[1760800952608,2.83264119,185.78,185.75,18.84253028]
[1760800952911,2.17264119,185.8,185.76,0.61]
[1760800953206,2.17264119,185.81,185.77,5.38300048]
[1760800953403,2.83264119,185.8,185.77,5.38300048]
[1760800956695,0.66,185.79,185.77,5.38300048]
[1760800956894,2.83264119,185.8,185.77,5.38300048]
[1760800957286,2.17264119,185.78,185.76,2.5]
[1760800957490,0.66,185.8,185.76,7.88318009]
[1760800957711,3.39680667,185.8,185.76,7.88318009]
[1760800957909,0.66,185.79,185.76,7.88318009]
[1760800958215,3.39680667,185.81,185.76,21.95140575]
[1760800958405,0.66,185.8,185.76,21.95140575]
[1760800958615,0.66,185.8,185.76,21.34140575]
[1760800959193,0.66,185.8,185.76,18.84140575]
[1760800959388,4.05680667,185.8,185.76,18.84140575]
[1760800959593,4.05680667,185.8,185.79,22.88]
[1760800960489,0.66,185.83,185.78,5.38243637]
[1760800960692,3.59680667,185.86,185.81,22.88]
[1760800961016,0.2,185.86,185.82,0.61]
[1760800961197,0.2,185.86,185.83,0.61]
[1760800962102,0.2,185.86,185.84,0.61]
[1760800962500,0.2,185.86,185.83,18.83441855]
[1760800962703,0.2,185.86,185.83,19.44441855]
[1760800962898,0.2,185.86,185.84,0.61]
[1760800963133,0.2,185.86,185.85,22.88]
[1760800963432,0.2,185.86,185.85,23.49]
[1760800963911,0.2,185.9,185.85,23.49]
[1760800964107,0.2,185.9,185.87,22.88]
[1760800964427,0.2,185.9,185.88,5.37981493]
[1760800964613,0.2,185.9,185.88,5.98981493]
[1760800964810,0.2,185.9,185.89,0.61]
[1760800967130,0.2,185.9,185.89,28.86952552]
[1760800968143,3.39680667,185.95,185.9,2.3]
[1760800968346,4.07680667,185.95,185.9,2.2]
[1760800968513,3.39680667,185.95,185.9,2.2]
[1760800968829,0.68,185.94,185.9,2.2]
[1760800969128,0.68,185.94,185.93,22.88]
[1760800969333,4.07680667,185.94,185.93,22.88]
[1760800970147,4.07680667,185.94,185.91,5.3789468]
[1760800970447,3.39680667,185.92,185.91,5.3789468]
[1760800970828,4.07680667,185.93,185.91,5.3789468]
[1760800971016,3.39680667,185.94,185.91,5.3789468]
[1760800971334,3.39680667,185.94,185.91,18.8263138]
[1760800972128,3.39680667,185.95,185.91,19.4363138]
[1760800972520,3.39680667,185.96,185.91,19.4363138]
[1760800972743,3.39680667,185.96,185.92,0.61]
[1760800973814,3.39680667,185.96,185.93,5.3783682]
[1760800974048,4.07680667,185.95,185.93,7.4783682]
[1760800974224,4.07680667,185.94,185.93,7.4783682]
[1760800975543,3.39680667,185.95,185.93,7.4783682]
[1760800975940,4.07680667,185.95,185.93,7.4783682]
[1760800978149,3.39680667,185.94,185.93,7.4783682]
[1760800978353,4.07680667,185.95,185.93,7.4783682]
[1760800980453,0.68,185.94,185.93,7.4783682]
[1760800980643,4.07680667,185.94,185.93,2.1]
[1760800981044,4.07680667,185.94,185.89,7.47947941]
[1760800981250,3.39680667,185.9,185.89,7.47947941]
[1760800981457,4.07680667,185.9,185.89,7.47947941]
[1760800982532,3.39680667,185.92,185.89,7.47947941]
[1760800983560,4.07680667,185.94,185.89,8.08947941]
[1760800983742,4.07680667,185.94,185.89,5.98947941]
[1760800983946,0.68,185.93,185.89,19.43829322]
[1760800984855,3.39680667,185.9,185.87,5.38010437]
[1760800985166,3.39680667,185.88,185.86,5.38032712]
[1760800985339,3.39680667,185.87,185.86,5.38032712]
[1760800985539,4.11680667,185.87,185.86,5.38032712]
[1760800985747,4.11680667,185.87,185.84,5.38097287]
[1760800985954,3.39680667,185.85,185.84,5.38097287]
[1760800986259,4.11680667,185.85,185.84,5.38097287]
[1760800986764,3.39680667,185.85,185.84,5.38097287]
[1760800987066,3.39680667,185.85,185.79,50.18]
[1760800987067,4.11680667,185.85,185.81,5.38162819]
[1760800987273,3.39680667,185.83,185.81,5.38162819]
[1760800987570,3.39680667,185.84,185.81,5.38162819]
[1760800987867,4.11680667,185.84,185.81,5.38162819]
[1760800988059,3.39680667,185.85,185.81,13.45460416]
[1760800988265,4.11680667,185.85,185.81,13.45460416]
[1760800988653,3.39680667,185.83,185.8,5.38213132]
[1760800989057,3.39680667,185.83,185.8,18.83745963]
[1760800990272,3.39680667,185.83,185.8,13.45532831]
[1760800991271,3.39680667,185.85,185.8,14.06532831]
[1760800991480,4.11680667,185.85,185.8,13.45532831]
[1760800991681,4.11680667,185.85,185.8,14.06532831]
[1760800992052,3.39680667,185.86,185.81,0.61]
[1760800992276,3.39680667,185.86,185.82,0.61]
[1760800992573,3.39680667,185.87,185.82,0.61]
[1760800992778,3.39680667,185.88,185.83,0.61]
[1760800992986,10.87647521,185.93,185.83,0.61]
[1760800992987,3.39680667,185.89,185.84,0.61]
[1760800993190,3.39680667,185.9,185.85,18.8323917]
[1760800993393,4.05680667,185.9,185.85,21.7423917]
[1760800995294,0.66,185.9,185.85,21.7423917]
[1760800995591,3.39680667,185.91,185.87,18.8303653]
[1760800996101,4.05680667,185.91,185.87,18.8303653]
[1760800996594,3.39680667,185.91,185.87,18.8303653]
[1760800996800,3.39680667,185.89,185.87,5.38010437]
[1760800997291,4.05680667,185.89,185.87,5.38010437]
[1760800997471,4.05680667,185.88,185.86,5.38039384]
[1760800997671,4.05680667,185.87,185.86,5.38039384]
[1760800997970,4.05680667,185.87,185.85,5.38063815]
[1760800998187,3.39680667,185.86,185.85,5.38063815]
[1760800998569,4.05680667,185.87,185.85,5.38063815]
[1760800998883,0.66,185.86,185.85,5.38063815]
[1760800999973,4.05680667,185.86,185.85,5.38063815]
[1760801003572,4.05680667,185.86,185.79,22.88]
[1760801003767,33.75647521,185.9,185.8,5.38213132]
[1760801003768,3.39680667,185.81,185.8,5.38213132]
[1760801003972,4.05680667,185.83,185.8,7.68213132]
[1760801004603,33.75647521,185.9,185.8,7.68213132]
[1760801004604,3.39680667,185.84,185.8,7.68213132]
[1760801004800,4.05680667,185.84,185.8,7.68213132]
[1760801005184,3.39680667,185.84,185.8,7.68213132]
[1760801005388,0.66,185.83,185.8,21.13745963]
[1760801007606,3.39680667,185.84,185.8,21.13745963]
[1760801007894,3.39680667,185.85,185.81,0.61]
[1760801008096,4.05680667,185.85,185.81,0.61]
[1760801008301,4.05680667,185.85,185.8,21.74745963]
[1760801008478,3.39680667,185.86,185.81,0.61]
[1760801008679,4.05680667,185.87,185.82,0.61]
[1760801009000,0.66,185.86,185.82,2.91]
[1760801009500,4.05680667,185.85,185.82,2.3]
[1760801009706,3.39680667,185.83,185.8,2.3]
[1760801009908,3.39680667,185.81,185.8,2.3]
[1760801010089,4.05680667,185.81,185.79,5.38242101]
[1760801010281,3.39680667,185.8,185.79,5.38242101]
[1760801011001,4.05680667,185.8,185.79,5.38242101]
[1760801011495,4.05680667,185.8,185.79,28.26242101]
[1760801011797,4.05680667,185.8,185.74,15.75900755]
[1760801012098,3.39680667,185.78,185.76,22.88]
[1760801012300,4.05680667,185.77,185.73,5.3841598]
[1760801012512,3.39680667,185.74,185.73,5.3841598]
[1760801012801,4.05680667,185.74,185.73,28.2641598]
[1760801013488,3.39680667,185.76,185.75,22.88]
[1760801014474,3.39680667,185.78,185.75,22.88]
[1760801014675,4.05680667,185.78,185.75,22.88]
[1760801015180,4.05680667,185.78,185.76,5.38329026]
[1760801016293,4.05680667,185.78,185.74,41.72354473]
[1760801016797,3.39680667,185.78,185.74,42.33354473]
[1760801017291,3.39680667,185.78,185.74,19.45354473]
[1760801018490,3.39680667,185.79,185.75,0.61]
[1760801018677,3.39680667,185.8,185.76,0.61]
[1760801019074,4.05680667,185.8,185.74,21.75354473]
[1760801019278,3.39680667,185.79,185.74,21.75354473]
[1760801019484,2.17324993,185.79,185.74,21.14354473]
[1760801019684,2.17324993,185.79,185.74,21.75354473]
[1760801019886,2.83324993,185.79,185.74,21.75354473]
[1760801024000,2.17324993,185.79,185.75,0.61]
[1760801024513,2.17324993,185.79,185.75,2.91]
[1760801024714,2.89324993,185.79,185.75,2.91]
[1760801025212,2.89324993,185.79,185.76,18.84151592]
[1760801025792,2.17324993,185.77,185.75,7.68353641]
[1760801025991,2.17324993,185.76,185.75,7.68353641]
[1760801027504,2.17324993,185.77,185.75,7.68353641]
[1760801027701,2.89324993,185.77,185.75,7.68353641]
[1760801027989,2.89324993,185.77,185.75,5.38353641]
[1760801028198,31.57299972,185.85,185.75,5.38353641]
[1760801028199,0.72,185.82,185.76,0.61]
[1760801028497,2.17324993,185.79,185.76,2.3]
[1760801028709,0.72,185.78,185.76,2.3]
[1760801028900,0.72,185.78,185.75,18.84248661]
[1760801028901,0.72,185.78,185.75,13.4589502]
[1760801031698,2.17324993,185.79,185.75,13.4589502]
[1760801032019,2.17324993,185.82,185.76,0.61]
[1760801032330,2.89324993,185.83,185.76,2.91]
[1760801032498,2.89324993,185.83,185.77,0.61]
[1760801032693,0.72,185.83,185.77,0.61]
[1760801033399,2.17324993,185.85,185.77,0.61]
[1760801033716,2.89324993,185.85,185.77,2.91]
[1760801033910,2.89324993,185.85,185.78,18.83948756]
[1760801034106,0.72,185.84,185.78,18.83948756]
[1760801034315,0.72,185.83,185.78,21.13948756]
[1760801034520,0.72,185.82,185.78,21.13948756]
[1760801037206,33.75647521,185.88,185.78,21.13948756]
[1760801037207,2.89324993,185.85,185.79,0.61]
[1760801037402,0.72,185.85,185.79,0.61]
[1760801037604,2.89324993,185.85,185.79,0.61]
[1760801037810,2.89324993,185.85,185.8,18.83745963]
[1760801038010,2.89324993,185.85,185.8,19.44745963]
[1760801038308,0.72,185.84,185.8,19.44745963]
[1760801039513,2.89324993,185.86,185.81,0.61]
[1760801039713,0.72,185.85,185.81,0.61]
[1760801040020,2.17324993,185.88,185.82,0.61]
[1760801040228,2.17324993,185.88,185.82,2.91]
[1760801040402,2.89324993,185.88,185.82,2.91]
[1760801040608,2.17324993,185.89,185.83,23.49]
[1760801040822,2.17324993,185.89,185.84,0.61]
[1760801041016,2.89324993,185.89,185.84,2.91]
[1760801042014,2.89324993,185.89,185.85,5.38068334]
[1760801042338,2.89324993,185.89,185.85,18.8323917]
[1760801043040,2.17324993,185.86,185.84,2.3]
[1760801043214,2.89324993,185.85,185.84,2.3]
[1760801043710,2.89324993,185.85,185.81,13.45446309]
[1760801043910,2.17324993,185.84,185.81,13.45446309]
[1760801044132,2.17324993,185.84,185.81,15.75446309]
[1760801045322,2.17324993,185.83,185.81,21.13630475]
[1760801047606,2.17324993,185.84,185.81,21.13630475]
[1760801049010,0.71,185.83,185.81,2.3]
[1760801049318,2.88324993,185.82,185.81,7.68184166]
[1760801049518,2.17324993,185.82,185.81,5.38184166]
[1760801050336,2.17324993,185.82,185.79,5.38242101]
[1760801050533,2.17324993,185.82,185.79,18.83847354]
[1760801050732,2.17324993,185.83,185.8,0.61]
[1760801051131,2.17324993,185.83,185.79,41.71847354]
[1760801051438,2.88324993,185.83,185.79,41.71847354]
[1760801052226,2.88324993,185.82,185.79,41.71847354]
[1760801052421,2.17324993,185.82,185.79,44.01847354]
[1760801052642,2.17324993,185.83,185.79,44.01847354]
[1760801052835,2.88324993,185.83,185.79,44.01847354]
[1760801053954,2.17324993,185.8,185.78,2.3]
[1760801054248,2.17324993,185.79,185.78,7.68269779]
[1760801055036,2.85324993,185.79,185.77,5.3829382]
[1760801055223,2.17324993,185.78,185.77,5.3829382]
[1760801055428,2.85324993,185.78,185.76,2.3]
[1760801055641,2.85324993,185.77,185.76,2.3]
[1760801056956,2.85324993,185.77,185.76,7.68329026]
[1760801057741,2.17324993,185.77,185.76,7.68329026]
[1760801059133,0.68,185.82,185.76,19.45151592]
[1760801059439,2.17324993,185.83,185.77,0.61]
[1760801059642,2.17324993,185.83,185.77,2.91]
[1760801059822,2.17324993,185.83,185.78,0.61]
[1760801060023,2.85324993,185.84,185.79,0.61]
[1760801060732,2.85324993,185.84,185.8,5.38213132]
[1760801061532,2.17324993,185.84,185.8,5.38213132]
[1760801061732,2.85324993,185.83,185.8,5.38213132]
[1760801061930,0.68,185.82,185.8,5.38213132]
[1760801062744,2.17324993,185.84,185.8,13.45532831]
[1760801063135,0.68,185.83,185.8,13.45532831]
[1760801063647,2.17324993,185.85,185.8,14.06532831]
[1760801063838,2.85324993,185.85,185.8,14.06532831]
[1760801064660,0.68,185.9,185.81,0.61]
[1760801064861,2.85324993,185.9,185.81,2.91]
[1760801065027,0.68,185.9,185.83,22.88]
[1760801065233,0.68,185.9,185.84,0.61]
[1760801065440,2.85324993,185.9,185.84,0.61]
[1760801066625,0.68,185.9,185.84,0.61]
[1760801066826,0.68,185.9,185.85,18.8323917]
[1760801067432,2.17324993,185.91,185.85,18.8323917]
[1760801067629,0.68,185.9,185.85,18.8323917]
[1760801067944,0.68,185.89,185.85,18.8323917]
[1760801068152,0.68,185.88,185.85,18.8323917]
[1760801068647,0.68,185.87,185.85,18.8323917]
[1760801068845,0.68,185.87,185.85,13.45170836]
[1760801069360,0.68,185.86,185.84,5.38097287]
[1760801069651,2.17324993,185.88,185.84,28.26097287]
[1760801069854,0.68,185.87,185.86,22.88]
[1760801070040,0.68,185.87,185.84,5.38097287]
[1760801070238,2.85324993,185.9,185.85,22.88]
[1760801070448,2.85324993,185.9,185.85,25.79]
[1760801070636,2.17324993,185.91,185.86,0.61]
[1760801070832,2.85324993,185.91,185.87,5.38010437]
[1760801071155,0.68,185.91,185.87,5.38010437]
[1760801071531,0.68,185.91,185.87,5.99010437]
[1760801072135,0.68,185.91,185.86,18.83129005]
[1760801072329,0.68,185.91,185.86,19.44129005]
[1760801074535,2.17324993,185.92,185.87,0.61]
[1760801074741,2.85324993,185.92,185.87,0.61]
[1760801075648,2.85324993,185.92,185.88,5.37981493]
[1760801076652,0.68,185.91,185.88,5.37981493]
[1760801076848,2.85324993,185.91,185.88,5.37981493]
[1760801077960,2.17324993,185.89,185.86,7.68033831]
[1760801078137,0.68,185.88,185.86,7.68033831]
[1760801078539,2.17324993,185.9,185.86,7.68033831]
[1760801078763,2.85324993,185.89,185.86,7.68033831]
[1760801079061,2.17324993,185.9,185.86,7.68033831]
[1760801079358,4.0718495,185.9,185.86,7.68033831]
[1760801079656,3.3918495,185.91,185.86,21.74132292]
[1760801079855,4.0718495,185.91,185.86,21.74132292]
[1760801080657,0.68,185.9,185.86,21.74132292]
[1760801081747,3.3918495,185.91,185.86,21.74132292]
[1760801081957,4.0718495,185.91,185.86,21.74132292]
[1760801082965,3.3918495,185.92,185.87,0.61]
[1760801083467,4.1018495,185.92,185.88,0.61]
[1760801083849,4.1018495,185.92,185.86,21.74132292]
[1760801086837,3.3918495,185.91,185.86,21.74132292]
[1760801087036,3.3918495,185.91,185.88,5.37981493]
[1760801088147,0.71,185.9,185.88,5.37981493]
[1760801088941,3.3918495,185.91,185.88,5.37981493]
[1760801089147,4.1018495,185.91,185.88,5.37981493]
[1760801089360,3.3918495,185.9,185.87,18.82965825]
[1760801090059,4.1018495,185.91,185.87,19.43965825]
[1760801090268,3.3918495,185.91,185.87,19.43965825]
[1760801090442,0.71,185.93,185.87,19.43965825]
[1760801090646,3.3918495,185.92,185.87,19.43965825]
[1760801090862,4.1018495,185.92,185.87,19.43965825]
[1760801091070,3.3918495,185.93,185.88,0.61]
[1760801091259,4.1018495,185.93,185.89,0.61]
[1760801091571,16.45312044,185.99,185.89,0.61]
[1760801091572,4.1018495,185.95,185.9,0.61]
[1760801092166,0.71,185.94,185.9,0.61]
[1760801093238,0.71,185.94,185.91,5.3789468]
[1760801093444,3.3918495,185.96,185.92,0.61]
[1760801093640,4.1018495,185.96,185.91,7.6789468]
[1760801093857,4.1018495,185.96,185.91,8.2889468]
[1760801094451,3.3918495,185.96,185.91,21.7363138]
[1760801094656,4.1018495,185.95,185.91,21.1263138]
[1760801096365,0.71,185.94,185.91,21.1263138]
[1760801097844,3.3918495,185.95,185.91,21.7363138]
[1760801098253,3.3918495,185.95,185.92,0.61]
[1760801098460,4.1018495,185.96,185.92,0.61]
[1760801098858,4.1018495,185.96,185.91,21.1263138]
[1760801099061,4.1018495,185.96,185.91,21.7363138]
[1760801100378,3.3918495,185.97,185.92,0.61]
[1760801100561,4.1018495,185.97,185.92,0.61]
[1760801100761,3.3918495,185.97,185.92,0.61]
[1760801101083,0.71,185.96,185.92,0.61]
[1760801101576,4.1018495,185.96,185.91,32.20278901]
[1760801101784,4.1018495,185.96,185.91,21.1263138]
[1760801101964,4.1018495,185.96,185.92,0.61]
[1760801102163,3.3918495,185.97,185.93,0.61]
[1760801102362,0.71,185.97,185.94,5.37807895]
[1760801102558,4.3018495,185.99,185.94,21.73327632]
[1760801102773,3.5918495,185.99,185.95,0.61]
[1760801102975,0.2,185.99,185.95,2.91]
[1760801103176,0.2,185.99,185.96,0.61]
[1760801103378,0.2,185.99,185.97,0.61]
[1760801104283,0.2,185.99,185.98,5.37692224]
[1760801104476,0.2,185.99,185.98,5.98692224]
[1760801104985,0.2,185.99,185.98,5.37692224]
[1760801105972,0.2,185.99,185.98,5.98692224]
[1760801107289,0.2,185.99,185.98,5.37692224]
[1760801107471,0.2,185.99,185.98,5.98692224]
[1760801108561,0.2,185.99,185.98,8.14250114]
[1760801109282,0.2,185.99,185.98,5.98692224]
[1760801110885,0.2,185.99,185.98,8.14250114]
[1760801112268,0.2,185.99,185.98,10.34250114]
[1760801113385,0.2,185.99,185.98,37.60250114]
[1760801113767,0.2,185.99,185.98,10.34250114]
[1760801114800,0.2,185.99,185.98,37.60250114]
[1760801114967,0.2,185.99,185.98,10.34250114]
[1760801115168,0.2,185.99,185.98,37.60250114]
[1760801115874,0.2,185.99,185.98,10.34250114]
[1760801116076,0.2,185.99,185.98,37.60250114]
[1760801116395,0.2,185.99,185.98,10.34250114]
[1760801117086,0.2,185.99,185.98,37.60250114]
[1760801117283,0.2,185.99,185.98,10.34250114]
[1760801118889,0.2,185.99,185.98,37.58250114]
[1760801119095,0.2,185.99,185.98,10.34250114]
[1760801119298,0.2,185.99,185.98,37.58250114]
[1760801119484,0.2,185.99,185.98,10.34250114]
[1760801120097,0.2,185.99,185.98,37.58250114]
[1760801120295,1e-08,185.99,185.98,60.46250114]
[1760801120781,0.2,186.02,186.01,22.88]
[1760801120981,0.2,186.02,186.01,23.4176055]
[1760801121292,0.2,186.02,186.01,25.68999999]
[1760801121480,0.2,186.02,186.01,27.23499823]
[1760801121794,0.2,186.02,186.01,54.47499823]
[1760801121992,0.2,186.02,186.01,33.22105328]
[1760801122195,0.2,186.02,186.01,60.46105328]
[1760801122399,0.2,186.02,186.01,33.22105328]
[1760801122783,0.2,186.02,186.01,60.46105328]
[1760801122982,0.2,186.02,186.01,33.22105328]
[1760801123188,0.2,186.02,186.01,32.61105328]
[1760801123599,0.2,186.02,186.01,60.46105328]
[1760801123911,0.2,186.02,186.01,33.22105328]
[1760801125076,0.2,186.02,186.01,60.46105328]
[1760801126198,0.2,186.02,186.01,33.22105328]
[1760801126384,0.2,186.02,186.01,60.46105328]
[1760801126691,0.2,186.02,186.01,32.61105328]
[1760801126899,0.2,186.02,186.01,59.85105328]
[1760801127094,0.2,186.02,186.01,32.61105328]
[1760801128304,0.2,186.02,186.01,60.46105328]
[1760801128701,0.2,186.04,186.03,2.19999998]
[1760801129094,0.2,186.04,186.03,29.43999998]
[1760801129398,0.2,186.04,186.03,5.69184948]
[1760801129802,0.2,186.04,186.03,11.06732655]
[1760801130102,0.2,186.04,186.03,50.33134946]
[1760801130287,0.2,186.04,186.03,23.09134946]
[1760801130490,0.2,186.04,186.03,50.33134946]
[1760801130704,0.2,186.04,186.03,49.72134946]
[1760801130883,0.2,186.04,186.03,50.33134946]
[1760801131083,1e-08,186.05,186.04,10.87647521]
[1760801131585,1e-08,186.05,186.04,38.11647521]
[1760801131785,1e-08,186.05,186.04,40.27100915]
[1760801132397,1e-08,186.05,186.04,13.64100915]
[1760801132709,1e-08,186.05,186.04,40.88100915]
[1760801133207,1e-08,186.05,186.04,45.64619728]
[1760801133401,1e-08,186.05,186.04,19.01619728]
[1760801134190,1e-08,186.05,186.04,46.25619728]
[1760801134581,1e-08,186.05,186.04,46.79371609]
[1760801135202,1e-08,186.05,186.04,19.55371609]
[1760801136008,1e-08,186.05,186.04,46.79371609]
[1760801136792,1e-08,186.05,186.04,19.55371609]
[1760801136992,1e-08,186.05,186.04,46.79371609]
[1760801137791,0.77,186.09,186.07,22.88]
[1760801138106,0.77,186.09,186.08,27.24]
[1760801138411,0.67,186.08,186.07,22.88]
[1760801138711,0.67,186.08,186.07,28.25432149]
[1760801139299,4.0618495,186.08,186.06,5.37456873]
[1760801139501,0.67,186.07,186.06,2.2]
[1760801139696,2.8366228,186.07,186.06,2.2]
[1760801140311,0.67,186.07,186.06,2.2]
[1760801140501,2.8366228,186.07,186.06,2.2]
[1760801140702,2.8366228,186.07,186.03,5.37547707]
[1760801140907,2.1666228,186.04,185.99,13.44110394]
[1760801141095,2.8366228,186.03,185.99,36.32110394]
[1760801141295,0.67,186.02,186.01,22.88]
[1760801141714,0.67,186.02,185.99,13.44110394]
[1760801141897,0.67,186.01,185.99,13.44110394]
[1760801142101,0.67,186.0,185.99,18.81773709]
[1760801142497,0.67,186.0,185.99,5.37663315]
[1760801142705,2.8366228,186.0,185.99,5.37663315]
[1760801142908,0.67,186.0,185.99,5.37663315]